[Event "44th Chess Olympiad Open 2022"]
[Site "Chennai"]
[Date "2022.08.05"]
[Round "7.8"]
[White "Durarbayli, Vasif"]
[Black "Rodshtein, Maxim"]
[Result "1-0"]
[ECO "C65"]
[WhiteElo "2638"]
[BlackElo "2596"]
[Annotator "TA"]
[PlyCount "47"]
[EventDate "2022.07.29"]
[EventType "team-tourn"]
[EventCountry "IND"]
[SourceTitle "playchess.com"]
[Source "ChessBase"]
[SourceQuality "1"]
[WhiteTeam "Azerbaijan"]
[BlackTeam "Israel"]
[WhiteTeamCountry "AZE"]
[BlackTeamCountry "ISR"]
[TimeControl "40/5400+30:1800+30"]

{[%evp 9,47,5,13,14,18,22,20,14,36,8,8,0,8,4,27,24,28,18,12,-27,-36,-35,-36,-23,0,7,10,0,6,0,25,0,18,22,8,2,168,186,543,536]} 1. e4 {[%emt 0:00:34]} e5 {[%emt 0:00:09]} 2. Nf3 {[%emt 0:00:35]} Nc6 {[%emt 0:00:08]} 3. Bb5 {[%emt 0:00:09]} Nf6 {[%emt 0:00:18]} 4. d3 {[%emt 0:00:21]} Bc5 {[%emt 0:00:10]} 5. c3 {[%emt 0:00:11]} O-O {[%emt 0:00:26]} 6. O-O {[%emt 0:00:21] C65: Ruy Lopez: Berlin Defence (3...Nf6), unusual lines and 4 0-0 Bc5.} d5 {[%emt 0:00:20]} 7. exd5 {[%emt 0:00:09]} Qxd5 {[%emt 0:00:07][%cal Oc5f2]} 8. Bc4 {[%emt 0:00:03] The position is equal.} Qd8 {[%emt 0:00:14]} 9. b4 {[%emt 0:00:05]} Be7 {[%emt 0:00:33]} 10. Nbd2 {[%emt 0:01:03]} Bf5 {[%emt 0:01:17]} 11. Qc2 {[%emt 0:00:08]} a6 {[%emt 0:02:12]} 12. a4 {[%emt 0:02:06] Prevents b5.} Nd5 {[%emt 0:01:31]} 13. Ne4 {[%emt 0:00:11]} Bg4 {[%emt 0:03:33] [#]} 14. Qa2 $5 $146 {[%emt 0:00:33][%mdl 8] An interesting novelty.} ({Predecessor:} 14. a5 Bxf3 15. gxf3 Qd7 16. Bd2 Rad8 17. Qb3 Nf4 18. Bxf4 exf4 19. d4 Qh3 20. Rfe1 Qxf3 {½-½ (42) Chigaev,M (2639)-Sadhwani,R (2609) Riga 2021}) 14... Nb6 {[%emt 0:14:34][%cal Bd5b6,Bb6c8,Bc8d6,Bd6b5][%mdl 32]} 15. Bb3 {[%emt 0:00:34]} Bxf3 {[%emt 0:01:22]} 16. gxf3 {[%emt 0:00:07]} Qd7 {[%emt 0:03:10]} 17. a5 $36 {[%emt 0:06:02][%mdl 2048] Black is under pressure.} Nc8 {[%emt 0:00:06]} 18. Qe2 {[%emt 0:00:06]} Nd6 {[%emt 0:13:04]} 19. Kh1 {[%emt 0:08:59]} Nb5 {[%emt 0:11:35]} 20. Bb2 {[%emt 0:24:54]} (20. Rg1 $5 {[%cal Rc1h6]}) 20... Rad8 {[%emt 0:03:02]} 21. Rad1 {[%emt 0:07:47]} Kh8 {[%emt 0:00:57]} 22. Rg1 {[%emt 0:04:46][%cal Od3d4] White wants to play d4!} h6 $2 {[%emt 0:15:30]} (22... Qf5 $11 {and Black has nothing to worry.}) 23. f4 $18 {[%emt 0:10:51]} exf4 $2 {[%emt 0:09:05] [#]} (23... f5) 24. Qh5 $1 {[%emt 0:02:35] Weighted Error Value: White=0.06 (flawless) /Black=0.46} 1-0

[Event "44th Chess Olympiad Open 2022"]
[Site "Chennai"]
[Date "2022.08.05"]
[Round "7.8"]
[White "Smirin, Ilia"]
[Black "Guseinov, Gadir"]
[Result "0-1"]
[ECO "B67"]
[WhiteElo "2601"]
[BlackElo "2668"]
[Annotator "TA"]
[PlyCount "90"]
[EventDate "2022.07.29"]
[EventType "team-tourn"]
[EventCountry "IND"]
[SourceTitle "playchess.com"]
[Source "ChessBase"]
[SourceQuality "1"]
[WhiteTeam "Israel"]
[BlackTeam "Azerbaijan"]
[WhiteTeamCountry "ISR"]
[BlackTeamCountry "AZE"]
[TimeControl "40/5400+30:1800+30"]

{[%evp 20,90,33,10,10,0,12,0,0,-16,0,-14,0,0,0,0,0,-71,15,-18,-10,-18,-18,-18,0,-21,-21,-181,-175,-164,-168,-157,-156,-199,-200,-296,-321,-314,-304,-370,-367,-346,-366,-454,-454,-524,-527,-530,-540,-572,-563,-637,-637,-587,-615,-739,-785,-770,-753,-729,-720,-806,-812,-948,-896,-1229,-1340,-1494,-1393,-1700,-1685,-1807,-1606]} 1. e4 {[%emt 0:00:10]} c5 {[%emt 0:00:19]} 2. Nf3 {[%emt 0:00:20]} d6 {[%emt 0:00:07]} 3. d4 {[%emt 0:00:29]} cxd4 {[%emt 0:00:05]} 4. Nxd4 {[%emt 0:00:12]} Nf6 {[%emt 0:00:09]} 5. Nc3 {[%emt 0:00:06]} Nc6 {[%emt 0:00:05]} 6. Bg5 {[%emt 0:01:13]} e6 {[%emt 0:00:38]} 7. Qd2 {[%emt 0:00:57]} a6 {[%emt 0:03:20]} 8. O-O-O {[%emt 0:01:05]} Bd7 {[%emt 0:00:07]} 9. f3 {[%emt 0:01:11]} Nxd4 {[%emt 0:00:40]} 10. Qxd4 {[%emt 0:00:07]} Be7 {[%emt 0:00:04]} 11. h4 {[%emt 0:03:43]} Qc7 $1 {[%emt 0:00:37] The main line 11...Qc7 scores better than 11...b5. B67: Sicilian: Richter-Rauzer: 7...a6 8 0-0-0 Bd7, lines without 9 f4 Be7.} 12. h5 {[%emt 0:05:47] And now h6 would win.} h6 {[%emt 0:00:10]} 13. Bh4 {[%emt 0:00:56]} b5 {[%emt 0:00:46][%cal Bb7b5,Bb5b4][%mdl 32] [#] The position is equal.} 14. Qd2 $146 {[%emt 0:02:41]} ({Predecessor:} 14. Kb1 Rb8 15. g4 b4 16. Ne2 a5 17. Ng3 a4 18. Bc4 Bb5 19. Bxb5+ Rxb5 20. f4 {½-½ (33) Bernadskiy,V (2636)-Vokhidov,S (2536) Tashkent 2022}) 14... b4 {[%emt 0:15:53]} 15. Ne2 {[%emt 0:00:13]} a5 {[%emt 0:01:54]} 16. Kb1 {[%emt 0:03:38]} Rb8 {[%emt 0:02:17]} 17. g4 {[%emt 0:08:04]} a4 {[%emt 0:02:17]} 18. b3 {[%emt 0:07:30]} (18. Bxf6 $11 Bxf6 19. Qxd6 Qxd6 20. Rxd6) 18... a3 {[%emt 0:15:26]} (18... O-O $17) 19. Bg3 {[%emt 0:05:02][%cal Rg3d6]} e5 {[%emt 0:04:34]} 20. Bh4 {[%emt 0:04:23]} Nh7 {[%emt 0:14:43]} 21. c4 {[%emt 0:04:57]} bxc3 {[%emt 0:08:46]} 22. Qxc3 {[%emt 0:06:38]} Qb6 {[%emt 0:04:42] Threatening ...Bxh4.} 23. Qd2 $2 {[%emt 0:11:01] [#] Loses the game.} (23. Bxe7 $11 Kxe7 24. Qc1) 23... Bxh4 $1 $19 {[%emt 0:03:42]} 24. Rxh4 {[%emt 0:00:04]} O-O {[%emt 0:00:04] White must now prevent ...Ng5.} (24... Ng5 25. Bg2 $17) 25. Nc3 {[%emt 0:06:00]} ({Don't blunder} 25. Qxd6 $2 Qf2 26. Rh1 (26. Qxa3 $2 Rbd8 $19) (26. Qxe5 $2 Qxh4 27. Qg3 Qf6 $19) 26... Qxf3 $19) 25... Be6 {[%emt 0:00:26][%cal Oe6b3] Hoping for ...Bxb3!} 26. Rh2 {[%emt 0:01:16]} Ng5 {[%emt 0:02:13]} 27. Qxd6 {[%emt 0:06:08] [#]} (27. Qd3 $142) 27... Bxb3 $1 {[%emt 0:01:50][%mdl 512]} 28. Qxb6 {[%emt 0:00:20]} Bxd1 {[%emt 0:08:30]} 29. Rb2 {[%emt 0:01:26]} Rxb6 {[%emt 0:02:10]} 30. Rxb6 {[%emt 0:00:04]} Bxf3 {[%emt 0:00:03]} 31. Bd3 {[%emt 0:00:37]} Bxg4 {[%emt 0:00:38] Black is clearly winning.} 32. Ra6 {[%emt 0:00:37]} Bxh5 {[%emt 0:01:36]} 33. Rxa3 {[%emt 0:00:05]} Bf3 {[%emt 0:00:17]} 34. Ra5 {[%emt 0:00:38]} f6 {[%emt 0:00:36][%cal Bf7f6,Bf6f5][%mdl 32]} 35. Nd5 {[%emt 0:00:17]} Kh7 {[%emt 0:02:21]} 36. Ra7 {[%emt 0:02:06]} Bxe4 {[%emt 0:01:18]} 37. Kc2 {[%emt 0:00:33]} Bxd3+ {[%emt 0:02:16]} 38. Kxd3 {[%emt 0:00:05][%mdl 4096] Endgame KRN-KRN} Rd8 {[%emt 0:00:09]} 39. Kc4 {[%emt 0:00:11]} f5 {[%emt 0:00:44]} 40. Re7 {[%emt 0:01:00]} Nf3 {[%emt 0:02:45]} 41. Nf6+ {[%emt 0:31:26]} Kg6 {[%emt 0:03:25]} 42. Ne8 {[%emt 0:00:00]} h5 {[%emt 0:00:22][%cal Bh6h5,Bh5h4][%mdl 32]} 43. Rxg7+ {[%emt 0:00:00]} Kh6 {[%emt 0:00:07]} 44. Re7 {[%emt 0:00:00]} h4 {[%emt 0:00:34] Threatens to win with ...h3.} 45. Re6+ {[%emt 0:00:00]} Kg5 {[%emt 0:00:24] Weighted Error Value: White=0.45/Black=0.06 (flawless)} 0-1

[Event "44th Chess Olympiad Open 2022"]
[Site "Chennai"]
[Date "2022.08.05"]
[Round "7.8"]
[White "Postny, Evgeny"]
[Black "Abasov, Nijat"]
[Result "1/2-1/2"]
[ECO "A28"]
[WhiteElo "2564"]
[BlackElo "2633"]
[Annotator "ChessBase"]
[PlyCount "160"]
[EventDate "2022.07.29"]
[EventType "team-tourn"]
[EventCountry "IND"]
[SourceTitle "playchess.com"]
[Source "ChessBase"]
[SourceQuality "1"]
[WhiteTeam "Israel"]
[BlackTeam "Azerbaijan"]
[WhiteTeamCountry "ISR"]
[BlackTeamCountry "AZE"]
[TimeControl "40/5400+30:1800+30"]

1. c4 {[%emt 0:00:04]} e5 {[%emt 0:00:49]} 2. Nc3 {[%emt 0:00:09]} Nf6 {[%emt 0:00:26]} 3. Nf3 {[%emt 0:00:11]} Nc6 {[%emt 0:00:15]} 4. e4 {[%emt 0:00:18]} Bb4 {[%emt 0:00:18]} 5. d3 {[%emt 0:00:14]} d6 {[%emt 0:00:32]} 6. a3 {[%emt 0:00:31]} Bc5 {[%emt 0:02:57]} 7. b4 {[%emt 0:00:15]} Bb6 {[%emt 0:00:06]} 8. Na4 {[%emt 0:00:33]} Bg4 {[%emt 0:03:11]} 9. Nxb6 {[%emt 0:01:10]} axb6 {[%emt 0:00:15]} 10. Bb2 {[%emt 0:00:53]} Nd4 {[%emt 0:27:25]} 11. Bxd4 {[%emt 0:16:05]} Bxf3 {[%emt 0:03:47]} 12. Qxf3 {[%emt 0:00:26]} exd4 {[%emt 0:00:08]} 13. Be2 {[%emt 0:01:11]} Qd7 {[%emt 0:04:16]} 14. O-O {[%emt 0:03:35]} O-O {[%emt 0:01:30]} 15. Qf4 {[%emt 0:13:37]} Ra7 {[%emt 0:04:40]} 16. Qd2 {[%emt 0:03:16]} Rfa8 {[%emt 0:07:08]} 17. Qb2 {[%emt 0:00:35]} c5 {[%emt 0:04:51]} 18. b5 {[%emt 0:03:35]} Re8 {[%emt 0:00:31]} 19. Qd2 {[%emt 0:04:42]} Rea8 {[%emt 0:01:07]} 20. Qc1 {[%emt 0:01:08]} Re8 {[%emt 0:00:13]} 21. Bd1 {[%emt 0:01:31]} d5 {[%emt 0:06:12]} 22. exd5 {[%emt 0:07:43]} Qd6 {[%emt 0:00:49]} 23. Qd2 {[%emt 0:09:48]} Kf8 {[%emt 0:00:37]} 24. g3 {[%emt 0:04:27]} h6 {[%emt 0:00:22]} 25. Re1 {[%emt 0:04:50]} Rxe1+ {[%emt 0:00:57]} 26. Qxe1 {[%emt 0:00:33]} Ra8 {[%emt 0:00:19]} 27. a4 {[%emt 0:03:18]} Nd7 {[%emt 0:10:23]} 28. Qd2 {[%emt 0:01:51]} Ra5 {[%emt 0:02:56]} 29. Bg4 {[%emt 0:03:50]} Ne5 {[%emt 0:00:10]} 30. Qf4 {[%emt 0:01:53]} g5 {[%emt 0:08:29]} 31. Qf5 {[%emt 0:01:42]} Nxg4 {[%emt 0:01:32]} 32. Qc8+ {[%emt 0:03:19]} Kg7 {[%emt 0:00:07]} 33. Qxg4 {[%emt 0:00:05]} Ra8 {[%emt 0:00:07]} 34. h4 {[%emt 0:02:04]} Qg6 {[%emt 0:00:39]} 35. hxg5 {[%emt 0:00:47]} hxg5 {[%emt 0:00:07]} 36. Qe4 {[%emt 0:04:54]} Qh6 {[%emt 0:01:56]} 37. Qe5+ {[%emt 0:00:46]} Kg6 {[%emt 0:00:08]} 38. Qe4+ {[%emt 0:00:07]} Kg7 {[%emt 0:00:04]} 39. Re1 {[%emt 0:02:26]} Rh8 {[%emt 0:07:02]} 40. Qe5+ {[%emt 0:00:34]} Kg6 {[%emt 0:00:14]} 41. Qe4+ {[%emt 0:30:14]} Kg7 {[%emt 0:30:06]} 42. Kf1 {[%emt 0:00:00]} Qh1+ {[%emt 0:00:00]} 43. Ke2 {[%emt 0:00:00]} Qxe4+ {[%emt 0:00:00]} 44. dxe4 {[%emt 0:00:00]} Kf6 {[%emt 0:00:00]} 45. Kd3 {[%emt 0:00:00]} Ke5 {[%emt 0:00:00]} 46. f4+ {[%emt 0:00:00]} gxf4 {[%emt 0:00:00]} 47. gxf4+ {[%emt 0:00:00]} Kxf4 {[%emt 0:00:00]} 48. Rf1+ {[%emt 0:00:00]} Ke5 {[%emt 0:00:00]} 49. Rf5+ {[%emt 0:00:00]} Kd6 {[%emt 0:00:00]} 50. Rxf7 {[%emt 0:00:00]} Rh3+ {[%emt 0:00:00]} 51. Kd2 {[%emt 0:00:00]} Rh2+ {[%emt 0:00:00]} 52. Kd3 {[%emt 0:00:00]} Rh3+ {[%emt 0:00:00]} 53. Ke2 {[%emt 0:00:00]} Rh2+ {[%emt 0:00:00]} 54. Kf3 {[%emt 0:00:03]} d3 {[%emt 0:00:00]} 55. Ke3 {[%emt 0:00:36]} Rh3+ {[%emt 0:00:00]} 56. Kd2 {[%emt 0:00:34]} Ke5 {[%emt 0:00:00]} 57. Kc3 {[%emt 0:00:37]} d2+ {[%emt 0:00:00]} 58. Kxd2 {[%emt 0:00:06]} Kxe4 {[%emt 0:00:00]} 59. Rxb7 {[%emt 0:01:11]} Rh6 {[%emt 0:00:00]} 60. Rg7 {[%emt 0:03:02]} Rh2+ {[%emt 0:00:00]} 61. Kc3 {[%emt 0:01:14]} Rh3+ {[%emt 0:00:00]} 62. Kd2 {[%emt 0:00:16]} Rh2+ {[%emt 0:00:00]} 63. Ke1 {[%emt 0:00:41]} Kd3 {[%emt 0:00:00]} 64. Rg4 {[%emt 0:03:26]} Kc3 {[%emt 0:00:00]} 65. Rf4 {[%emt 0:00:33]} Kb4 {[%emt 0:00:00]} 66. d6 {[%emt 0:01:23]} Rh6 {[%emt 0:00:00]} 67. d7 {[%emt 0:00:04]} Re6+ {[%emt 0:00:00]} 68. Kf2 {[%emt 0:00:13]} Rd6 {[%emt 0:00:00]} 69. Rf7 {[%emt 0:00:34]} Kxa4 {[%emt 0:00:00]} 70. Ke3 {[%emt 0:00:54]} Rd4 {[%emt 0:00:00]} 71. Rf6 {[%emt 0:00:42]} Ka5 {[%emt 0:00:00]} 72. Rf7 {[%emt 0:00:29]} Kb4 {[%emt 0:00:00]} 73. Rf6 {[%emt 0:00:13]} Rxd7 {[%emt 0:00:00]} 74. Rxb6 {[%emt 0:00:08]} Kxc4 {[%emt 0:00:00]} 75. Rb8 {[%emt 0:00:23]} Kb3 {[%emt 0:00:00]} 76. b6 {[%emt 0:01:12]} c4 {[%emt 0:00:00]} 77. Rc8 {[%emt 0:00:30]} c3 {[%emt 0:00:00]} 78. Rc7 {[%emt 0:00:31]} Rd6 {[%emt 0:00:00]} 79. b7 {[%emt 0:00:07]} Rb6 {[%emt 0:00:00]} 80. Kd3 {[%emt 0:00:10]} Kb2 {[%emt 0:00:00]} 1/2-1/2

[Event "44th Chess Olympiad Open 2022"]
[Site "Chennai"]
[Date "2022.08.05"]
[Round "7.9"]
[White "Volokitin, Andrei"]
[Black "Theodorou, Nikolas"]
[Result "0-1"]
[ECO "B30"]
[WhiteElo "2674"]
[BlackElo "2575"]
[Annotator "TA"]
[PlyCount "82"]
[EventDate "2022.07.29"]
[EventType "team-tourn"]
[EventCountry "IND"]
[SourceTitle "playchess.com"]
[Source "ChessBase"]
[SourceQuality "1"]
[WhiteTeam "Ukraine"]
[BlackTeam "Greece"]
[WhiteTeamCountry "UKR"]
[BlackTeamCountry "GRE"]
[TimeControl "40/5400+30:1800+30"]

{[%evp 11,82,0,0,0,0,3,21,31,32,33,36,26,26,30,33,28,56,48,58,62,65,60,81,50,50,42,61,73,77,46,54,39,49,50,49,0,30,0,49,43,87,62,80,39,24,0,0,0,0,0,0,-12,-17,-27,-12,-14,-4,-16,-18,-373,-373,-367,-352,-251,-275,-1094,-1060,-29985,-29986,-29986,-29987,-29983,-29983]} 1. e4 {[%emt 0:00:03]} c5 {[%emt 0:00:06]} 2. Nf3 {[%emt 0:00:06]} Nc6 {[%emt 0:00:04]} 3. Bb5 {[%emt 0:00:08]} e6 {[%emt 0:00:09]} 4. Bxc6 {[%emt 0:03:10]} bxc6 {[%emt 0:00:06]} 5. d3 {[%emt 0:00:04]} Qc7 {[%emt 0:00:04]} 6. O-O {[%emt 0:00:59]} Ne7 {[%emt 0:00:05] 6...d6 is not played anymore.} 7. h4 {[%emt 0:01:23] B30: Sicilian: 2...Nc6 3 Bb5, lines without ...g6.} d6 {[%emt 0:00:08]} 8. h5 {[%emt 0:00:55]} h6 {[%emt 0:00:05] [#]} 9. Nbd2 $146 {[%emt 0:07:22] The position is equal.} ({Predecessor:} 9. Nh2 g5 10. hxg6 Nxg6 11. f4 Rg8 12. Qh5 Qe7 13. Nf3 Qf6 14. Qh2 d5 15. Nc3 {½-½ (51) Motylev,A (2641)-Ivic,V (2581) Tornelo INT 2021}) 9... g5 {[%emt 0:00:08]} 10. e5 {[%emt 0:00:31]} dxe5 {[%emt 0:00:05]} 11. Re1 {[%emt 0:00:20]} Bg7 {[%emt 0:00:15]} 12. Nc4 {[%emt 0:00:15]} Ba6 {[%emt 0:00:03]} 13. Nfxe5 {[%emt 0:00:23] Pair of Knights!} Rd8 {[%emt 0:00:10]} 14. Bd2 {[%emt 0:18:18]} Rd5 {[%emt 0:00:07]} 15. Ba5 {[%emt 0:25:12]} Qb8 {[%emt 0:00:09]} 16. Bc3 {[%emt 0:06:20][%cal Oe5c6] Threatens to win with Nxc6!} O-O {[%emt 0:00:11]} 17. Qg4 {[%emt 0:03:28]} Bxc4 {[%emt 0:10:19]} 18. Nxc4 {[%emt 0:00:18]} Bxc3 {[%emt 0:00:07]} 19. bxc3 {[%emt 0:00:03]} Rf5 {[%emt 0:00:06]} 20. Rab1 {[%emt 0:07:45]} Qc7 {[%emt 0:00:33]} 21. Qg3 {[%emt 0:02:52]} Rf4 $1 {[%emt 0:14:16]} 22. Qe3 {[%emt 0:01:11]} Rf5 $1 {[%emt 0:00:43]} ({Less strong is} 22... Rh4 23. g3 Nd5 24. Qxc5 Rxh5 25. Rb3 $16) 23. Qg3 {[%emt 0:02:03]} Rf4 $1 {[%emt 0:00:12]} 24. Qe3 {[%emt 0:00:09]} Rf5 {[%emt 0:00:17]} ({Resist} 24... Rh4 25. g3 Nd5 26. Qxc5 Rxh5 27. Rb3 $16) 25. Rb3 {[%emt 0:00:45]} Rd8 {[%emt 0:07:41][%cal Bf8d8,Bd8d4,Bd4f4][%mdl 32]} 26. Reb1 {[%emt 0:14:58] Rb7 is the strong threat.} Nd5 {[%emt 0:04:26]} 27. Qd2 {[%emt 0:00:44]} ({Wrong is} 27. Qxc5 $2 Nxc3 $1 {[%mdl 512]} 28. Qe3 Nxb1 29. Rxb1 Rb5 $19) 27... Qe7 {[%emt 0:08:21]} 28. Ne3 {[%emt 0:02:52]} Nxe3 {[%emt 0:05:09]} 29. Qxe3 {[%emt 0:00:02]} Qf6 {[%emt 0:00:07]} 30. c4 {[%emt 0:01:53]} Rd4 {[%emt 0:02:02] And now ...Rh4 would win.} 31. Rb8+ {[%emt 0:00:49]} Kg7 {[%emt 0:01:12]} 32. g3 {[%emt 0:00:28] Prevents Rh4.} Re5 {[%emt 0:16:37]} 33. Qd2 {[%emt 0:00:02]} g4 {[%emt 0:00:08] aiming for ...Qf3.} 34. Re1 {[%emt 0:01:00]} Rxh5 {[%emt 0:01:22] ( -> ...Qf3)} 35. Qe2 {[%emt 0:00:11][%mdl 8192] [#] Now White is beyond hope.} (35. Qe3 $11 {and White is okay.}) 35... Rf4 $3 $19 {[%emt 0:03:24][%mdl 512]} 36. Rf1 {[%emt 0:00:53]} (36. gxf4 Qxf4) 36... Re5 {[%emt 0:13:19] Really sharp!} 37. Qd2 {[%emt 0:00:29]} Rf3 {[%emt 0:00:17]} 38. Re1 $2 {[%emt 0:00:27]} (38. Qc3) 38... Ref5 {[%emt 0:02:20][%cal Rf3f2]} 39. Re2 {[%emt 0:00:30] [#]} Rxg3+ $3 {[%emt 0:09:41][%mdl 512] Black mates.} 40. fxg3 {[%emt 0:00:02]} Rf1+ {[%emt 0:00:07]} 41. Kh2 {[%emt 0:30:04]} Qa1 {[%emt 0:30:04] Weighted Error Value: White=0.75/Black=0.03 (flawless)} 0-1

[Event "44th Chess Olympiad Open 2022"]
[Site "Chennai"]
[Date "2022.08.05"]
[Round "7.9"]
[White "Shevchenko, Kirill"]
[Black "Ioannidis, Evgenios"]
[Result "1-0"]
[ECO "D31"]
[WhiteElo "2654"]
[BlackElo "2459"]
[Annotator "TA"]
[PlyCount "93"]
[EventDate "2022.07.29"]
[EventType "team-tourn"]
[EventCountry "IND"]
[SourceTitle "playchess.com"]
[Source "ChessBase"]
[SourceQuality "1"]
[WhiteTeam "Ukraine"]
[BlackTeam "Greece"]
[WhiteTeamCountry "UKR"]
[BlackTeamCountry "GRE"]
[TimeControl "40/5400+30:1800+30"]

{[%evp 9,93,19,17,17,24,24,26,16,37,31,36,27,56,37,114,116,145,122,137,113,179,113,206,225,191,185,400,381,757,755,795,791,741,476,453,398,382,229,233,186,200,187,187,186,173,187,178,157,171,170,191,151,143,143,149,144,187,178,186,101,118,82,141,0,13,0,157,162,157,154,154,84,205,208,207,207,265,229,295,295,336,340,406,401,370,345]} 1. c4 {[%emt 0:00:03]} e6 {[%emt 0:00:25]} 2. Nc3 {[%emt 0:00:58]} d5 {[%emt 0:00:16]} 3. d4 {[%emt 0:00:08]} a6 {[%emt 0:00:17]} 4. cxd5 {[%emt 0:00:22]} exd5 {[%emt 0:00:09]} 5. Bf4 {[%emt 0:00:02]} Nf6 {[%emt 0:03:56]} 6. e3 {[%emt 0:00:05] D31: Queen's Gambit Declined: Semi-Slav without ...Nf6 (+ Marshall Gambit and Noteboom) and Exchange Variation lines without ...Nf6.} Bd6 {[%emt 0:01:47]} 7. Bg5 {[%emt 0:00:34][%cal Bf4g5,Bg5h4,Bh4g3][%mdl 32]} Be6 {[%emt 0:02:13]} 8. Bd3 {[%emt 0:01:55] White has an edge.} Nbd7 {[%emt 0:07:39]} 9. f4 {[%emt 0:01:55][%cal Bf2f4,Bf4g5][%mdl 32] Black must now prevent f5.} h6 {[%emt 0:05:14]} 10. Bh4 {[%emt 0:00:18]} g5 {[%emt 0:05:09]} 11. fxg5 {[%emt 0:00:22]} Ng4 {[%emt 0:08:30]} (11... hxg5 $14 12. Bxg5 Rxh2 13. Rxh2 Bxh2) 12. Nf3 $16 {[%emt 0:12:15]} Be7 {[%emt 0:13:57][%cal Rh6g5]} (12... Nxe3 $2 13. Qe2 hxg5 14. Bxg5 (14. Qxe3 gxh4 15. O-O Qe7 $11) 14... Nxg2+ 15. Qxg2 $18) 13. Qe2 {[%emt 0:07:45]} hxg5 {[%emt 0:05:49]} 14. Bg3 {[%emt 0:03:25] [#]} c5 $146 {[%emt 0:00:21]} (14... Nb6 $16 {was worth a try.}) ({Predecessor:} 14... Nh6 15. O-O-O c6 16. e4 dxe4 17. Bxe4 g4 18. Ne5 Nb6 19. Kb1 Nd5 20. Nxd5 cxd5 {1-0 (33) Xu,Y (2562)-Batsiashvili,N (2433) Changsha 2019}) 15. O-O {[%emt 0:13:26]} (15. e4 $18 Ndf6 16. exd5 Nxd5 17. Nxd5 Qxd5 18. Be4) 15... c4 {[%emt 0:10:45] [#]} (15... Qb6 $16) 16. Bxc4 $1 $18 {[%emt 0:11:06][%mdl 512]} dxc4 {[%emt 0:00:15] [#]} 17. d5 $1 {[%emt 0:00:03]} Nc5 {[%emt 0:06:59]} (17... Ndf6 {keeps fighting.}) 18. dxe6 {[%emt 0:24:46]} Nxe6 {[%emt 0:00:23]} (18... Qd3 19. exf7+ Kf8) 19. Rad1 {[%emt 0:01:35]} (19. h3 Nxe3 20. Rfe1 (20. Qxe3 $2 Bc5 $19) 20... O-O $11) 19... Qa5 {[%emt 0:00:18]} 20. Nd4 {[%emt 0:01:13]} Nf6 {[%emt 0:01:03]} 21. Nxe6 {[%emt 0:00:59]} fxe6 {[%emt 0:00:06]} 22. Qxc4 {[%emt 0:00:25]} Qb6 {[%emt 0:00:30]} 23. Rf3 {[%emt 0:05:37]} (23. h4 $142 {Threatens to win with Qd3.} gxh4 {[#]} 24. Rd6 $3 {[%mdl 512]} (24. Bxh4 Qxe3+ 25. Rf2 Bc5 $11) (24. Bc7 Qc6 $14) 24... Qxe3+ 25. Bf2) 23... Qc6 {[%emt 0:03:51]} 24. Qxc6+ {[%emt 0:05:53]} bxc6 {[%emt 0:00:34]} 25. Rd4 {[%emt 0:00:08]} Nd5 {[%emt 0:04:44]} 26. Rc4 {[%emt 0:00:45]} Rc8 {[%emt 0:00:48]} 27. Na4 {[%emt 0:01:26]} c5 {[%emt 0:02:32]} 28. Be5 {[%emt 0:02:56]} Rh5 {[%emt 0:03:02][%cal Og5g4]} 29. Bg3 {[%emt 0:02:46]} Rc6 {[%emt 0:01:11]} 30. e4 {[%emt 0:01:18]} Nb6 {[%emt 0:01:55]} 31. Nxb6 {[%emt 0:00:04] White is more active.} Rxb6 {[%emt 0:00:04]} 32. b3 {[%emt 0:00:56]} g4 {[%emt 0:02:21]} 33. Rf4 {[%emt 0:00:35]} Rd6 {[%emt 0:00:06]} 34. Rf1 {[%emt 0:00:54] Prevents Rd1.} (34. Ra4 $18) 34... Rd4 {[%emt 0:05:29]} 35. e5 {[%emt 0:00:27]} Kd7 {[%emt 0:02:22]} ({Black should try} 35... a5) 36. Rf4 {[%emt 0:00:33]} ({Better is} 36. Rxd4+ $16 cxd4 37. Rf4) 36... Rd1+ $11 {[%emt 0:00:21]} 37. Rf1 {[%emt 0:00:01]} (37. Kf2 $11) 37... Rd4 $16 {[%emt 0:00:05]} 38. Rxd4+ {[%emt 0:00:43]} cxd4 {[%emt 0:00:04][%mdl 4096] Endgame KRB-KRB} 39. Rf4 {[%emt 0:00:03][%csl LRd4,LRg4]} Kc6 {[%emt 0:00:24]} 40. Bf2 {[%emt 0:01:10]} (40. Rxd4 $2 Bc5 41. Bf2 Bxd4 42. Bxd4 Kd5 $19) (40. Rxg4 $142 {Bf2 is the strong threat.} Rg5 41. Rxg5 (41. Rxd4 Bc5 $15) 41... Bxg5 42. Kf2) 40... g3 {[%emt 0:03:09] This move loses the game for Black.} (40... d3 $16 {was necessary.} 41. Rc4+ (41. Rd4 Rxe5 42. Rxd3 Re2 $16) 41... Kb7) 41. hxg3 $18 {[%emt 0:04:43]} ({Don't play} 41. Bxd4 $6 Rxh2 42. Rf3 Rh4 $16) 41... Rxe5 {[%emt 0:01:04]} 42. Rxd4 {[%emt 0:04:21]} ({Much less strong is} 42. Bxd4 Ra5 $16) 42... Re2 {[%emt 0:06:24]} 43. Rc4+ {[%emt 0:01:52]} Kb7 {[%emt 0:02:12]} 44. Ra4 {[%emt 0:01:36]} Bd8 {[%emt 0:00:05]} 45. Kf1 {[%emt 0:01:10]} Rc2 {[%emt 0:04:38]} 46. Rb4+ {[%emt 0:01:30]} Ka8 {[%emt 0:00:04]} 47. Rc4 {[%emt 0:00:30] Weighted Error Value: White=0.24 (precise) /Black=0.27 (precise)} 1-0